Cogmind - Beta 16 @@@ ROGUE MODE // 2025.11.09 @ 16:04:56 Player: Mozco Result: Destroyed by IE-JJS(R) with Subdweller Machine Gun Performance ------------- Evolutions (0) 0 Regions Visited (2) 400 Robots Destroyed (9) 45 Value Destroyed (210) 210 Prototype IDs (0) 0 Alien Tech Used (0) 0 Bonus (-126) -126 TOTAL SCORE: 529 Bonus ------- Friendly Fire -126 Cogmind --------- Core Integrity 0/250 Matter 287/300 Energy 250/250 System Corruption 0% Temperature Cool (0) Movement Walking (120) Location -10/Subcaves Parts ------- > --- POWER (1) -------- Ion Engine > --- PROPULSION (2) --- Aluminum Leg Aluminum Leg > --- UTILITY (2) ------ Small Storage Unit Subdweller Optics > --- WEAPON (2) ------- Medium Laser Subdweller Machine Gun > --- INVENTORY (8) ---- Aluminum Leg Aluminum Leg Humpback Scrap Shield Salvaging Laser Peak State ------------ > --- POWER ------------ Ion Engine > --- PROPULSION ------- Aluminum Leg Aluminum Leg > --- UTILITY ---------- Small Storage Unit Subdweller Optics > --- WEAPON ----------- Medium Laser Flamer > --- INVENTORY -------- Aluminum Leg Aluminum Leg Aluminum Leg Aluminum Leg Scrap Shield Salvaging Laser Subdweller Machine Gun [Rating: 10] Favorites ----------- Power Ion Engine Engine Ion Engine Propulsion Aluminum Leg Leg Aluminum Leg Utility Small Storage Unit Device Subdweller Optics Storage Small Storage Unit Weapon Medium Laser Energy Gun Medium Laser Ballistic Gun Subdweller Machine Gun Special Weapon Flamer Build | -11 -10 -10 ------- Run | Yrd Mat Sub Slots Evolved . | . . . Power . | . . . Propulsion . | . . . Utility . | . . . Weapon . | . . . Parts Attached 13 | 6 . 7 Power 2 | 1 . 1 Engine 2 | 1 . 1 Core . | . . . Reactor . | . . . Propulsion 5 | 2 . 3 Treads . | . . . Leg 5 | 2 . 3 Wheel . | . . . Hover . | . . . Flight . | . . . Utility 2 | 1 . 1 Device 1 | . . 1 Storage 1 | 1 . . Processor . | . . . Hackware . | . . . Protection . | . . . Artifact . | . . . Weapon 4 | 2 . 2 Energy Gun 1 | 1 . . Energy Cannon . | . . . Ballistic Gun 2 | 1 . 1 Ballistic Cannon . | . . . Launcher . | . . . Special Weapon 1 | . . 1 Impact Weapon . | . . . Slashing Weapon . | . . . Piercing Weapon . | . . . Special Melee Weapon . | . . . Unidentified Prototypes . | . . . Parts Lost 2 | . . 2 Power . | . . . Propulsion 1 | . . 1 Utility . | . . . Weapon 1 | . . 1 Highest Loss Streak 1 | . . 1 To Critical Strikes . | . . . Average Backups 6 | 1 4 6 Power . | . 1 . Propulsion 3 | . 1 4 Utility . | . . . Weapon 1 | . 1 1 Tool/Special . | . . . Unused Backups 8 | . . 8 Power 1 | . . 1 Propulsion 3 | . . 3 Utility 2 | . . 2 Weapon 2 | . . 2 Tool/Special . | . . . Average Slot Usage (%) 97 | . 85 98 Engine 14 | . 14 14 Leg 27 | . 28 27 Device 11 | . . 13 Storage 14 | . 14 14 Energy Gun 14 | . 14 14 Ballistic Gun 12 | . 14 12 Special Weapon 1 | . . 1 Peak Build Rating 10 | 6 6 10 Average Rating 8 | 4 6 8 On Entrance 4 | . 6 6 Avg Prop Armor Cover (%) . | . . . Naked Turns . | . . . Heaviest Build 18 | 13 13 18 Greatest Support 20 | 20 20 20 Greatest Overweight (x) 1 | 1 . . Average Overweight (x) . | . . . Largest Inventory Capacity 8 | 8 8 8 Average Capacity 7 | 7 8 8 Most Carried 8 | 2 8 8 Average Carried 6 | 1 4 7 Final Capacity 8 | 8 8 8 Final Carried 8 | 2 8 7 Class Distribution -------------------- 77% | Mutant 22% | Scavenger-Mutant Dominant Class ---------------- Mutant | -10/Materials Mutant | -10/Subcaves Resources | -11 -10 -10 ----------- Run | Yrd Mat Sub Matter Collected 374 | 247 14 113 Remotely . | . . . Salvage Created 191 | . . 191 Parts 16 | . . 16 Haulers Intercepted . | . . . Recyclers Shooed . | . . . Parts Field Recycled . | . . . Retrieved Matter . | . . . Parts Self-Destructed 14 | . . 14 Prevented . | . . . Parts Restored . | . . . Kills | -11 -10 -10 ------- Run | Yrd Mat Sub Combat Hostiles Destroyed 6 | . . 6 Guns 6 | . . 6 Classes Destroyed 4 | . . 4 Turret 2 | . . 2 Swarmer 3 | . . 3 Subdweller 3 | . . 3 Federalist 1 | . . 1 Best Kill Streak 4 | . . 4 Combat Bots Only 2 | . . 2 Max Kills in Single Turn 1 | . . 1 Gunslinging . | . . . Exploded . | . . . Melee . | . . . Uniques/NPCs Destroyed . | . . . Combat | -11 -10 -10 -------- Run | Yrd Mat Sub Hostile Shots Fired 93 | . . 93 Missed 42 | . . 42 Hits 51 | . . 51 Projectile 51 | . . 51 AOE 1 | . . 1 Critical Strikes 1 | . . 1 Damage Taken 888 | . 10 878 Core 256 | . 10 246 Absorbed by Shields . | . . . Core Remaining (%) 100 | 100 . . Volleys Fired 36 | . 1 35 Largest 2 | . 2 2 Hottest 150 | . 70 150 Shots Fired 72 | . 2 70 Gun 68 | . 2 66 Cannon . | . . . Launcher . | . . . Special 4 | . . 4 Kinetic 32 | . 1 31 Thermal 40 | . 1 39 Explosive . | . . . Electromagnetic . | . . . Robot Hit Streak 8 | . 1 8 Robot Miss Streak 4 | . 1 4 Penetration Max . | . . . Secondary Targets 1 | . . 1 Max Gunslinging Chain 1 | . . 1 Shots Hit Robots 47 | . 1 46 Core Hits 16 | . . 16 Critical Kills . | . . . Critical Parts Destroyed 1 | . . 1 Critical Strikes 3 | . . 3 Burn 2 | . . 2 Destroy 1 | . . 1 Melee Attacks . | . . . Impact . | . . . Slashing . | . . . Piercing . | . . . Sneak Attacks . | . . . Combat Hostiles . | . . . Follow-up Attacks . | . . . Damage Inflicted 690 | . 20 670 Guns 643 | . 20 623 Cannons . | . . . Explosions . | . . . Melee . | . . . Ramming . | . . . Kinetic 315 | . 7 308 Thermal 375 | . 13 362 Explosive . | . . . Electromagnetic . | . . . Impact . | . . . Slashing . | . . . Piercing . | . . . Highest Corruption . | . . . Average Corruption . | . . . Corruption Purged . | . . . Corruption Blocked . | . . . Overload Shots . | . . . Overflow Damage . | . . . Projectiles . | . . . Explosions . | . . . Melee . | . . . Knockbacks . | . . . Impact . | . . . Kinetic . | . . . Secondary . | . . . Self-Inflicted Damage . | . . . Shots . | . . . Rammed . | . . . Targets Rammed . | . . . Kicked . | . . . Crushed . | . . . Highest Temperature 30 | . 30 5 Average Temperature 9 | . 19 3 Received Heat Transfer 120 | . 6 114 Siege Activations . | . . . Martial Activations . | . . . Shielding Activations . | . . . Robots Disrupted . | . . . Combat Hostiles . | . . . Robots Corrupted . | . . . Combat Hostiles . | . . . Parts Fried . | . . . Impact Corruptions . | . . . Robots Melted . | . . . Combat Hostiles . | . . . Parts Melted . | . . . Heat Transferred 1430 | . 37 1393 Parts Sabotaged . | . . . Parts Stolen . | . . . Parts Stripped . | . . . Power Chain Reactions . | . . . Alert | -11 -10 -10 ------- Run | Yrd Mat Sub Maximum Alert Level . | . . . Low Security (%) 100 | 100 100 . Level 1 . | . . . Level 2 . | . . . Level 3 . | . . . Level 4 . | . . . Level 5 . | . . . High Security . | . . . Max Security . | . . . Peak Influence . | . . . Initial . | . . . Average . | . . . Influence Increases 235 | . . 235 Destroy 0b10 Robot/C 100 | . . 100 Lose Combat Pursuer 135 | . . 135 Influence Decreases 46 | . . 46 Time Decay 36 | . . 36 Lost Part 10 | . . 10 Squads Dispatched 2 | . 2 . Investigation . | . . . Extermination . | . . . Reinforcement 2 | . 2 . Assault . | . . . Garrison . | . . . Intercept . | . . . Searches Triggered . | . . . Construction Impeded . | . . . Haulers Reinforced . | . . . Active Scanning Responses . | . . . Cargo Convoy Interrupts . | . . . Stealth | -11 -10 -10 --------- Run | Yrd Mat Sub Distress Signals . | . . . Communications Jammed . | . . . Distress Signals . | . . . Times Spotted 21 | . 5 16 Peak Tracking Total 5 | . 2 5 Tactical Retreats 3 | . . 3 Traps | -11 -10 -10 ------- Run | Yrd Mat Sub Traps Triggered . | . . . Indirectly . | . . . Trap Hack Attempts . | . . . Triggered . | . . . Disarmed . | . . . Reprogrammed . | . . . Reused . | . . . Traps Extracted . | . . . Installed . | . . . Triggered . | . . . Machines | -11 -10 -10 ---------- Run | Yrd Mat Sub Machines Disabled 1 | . . 1 Max in Single Turn 1 | . . 1 Machines Repaired . | . . . Machines Dismantled . | . . . Machines Sabotaged . | . . . Overloaded Fab Kills . | . . . Hacking | -11 -10 -10 --------- Run | Yrd Mat Sub Machines Accessed 1 | . 1 . Terminals 1 | . 1 . Fabricators . | . . . Repair Stations . | . . . Recycling Units . | . . . Scanalyzers . | . . . Garrison Access . | . . . Total Hacks 2 | . 2 . Successful 1 | . 1 . Failed 1 | . 1 . Catastrophic . | . . . Database Lockouts . | . . . Manual 2 | . 2 . Terminals 2 | . 2 . Fabricators . | . . . Repair Stations . | . . . Recycling Units . | . . . Scanalyzers . | . . . Garrison Access . | . . . Terminal Hacks . | . . . Fabricator Hacks . | . . . Repair Station Hacks . | . . . Recycling Unit Hacks . | . . . Scanalyzer . | . . . Garrison Access Hacks . | . . . Unauthorized Hacks 1 | . 1 . Terminals 1 | . 1 . Botnet 1 | . 1 . Fabricators . | . . . Repair Stations . | . . . Recycling Units . | . . . Scanalyzers . | . . . Garrison Access . | . . . Data Cores Recovered . | . . . Used . | . . . Hacking Detections 1 | . 1 . Full Trace Events . | . . . Feedback Events . | . . . Feedback Blocked . | . . . Robot Schematics Acquired . | . . . Robots Built . | . . . Authchips . | . . . Time . | . . . Total Robot Build Rating . | . . . Part Schematics Acquired . | . . . Parts Built . | . . . Authchips . | . . . Time . | . . . Total Part Build Rating . | . . . Part Studies Acquired . | . . . Parts Repaired . | . . . Time . | . . . Parts Recycled . | . . . Recycled Matter . | . . . Retrieved Matter . | . . . Retrieved Components . | . . . Parts Scanalyzed . | . . . Part Schematics Acquired . | . . . Parts Damaged . | . . . Bothacking | -11 -10 -10 ------------ Run | Yrd Mat Sub Used RIF Installer . | . . . Robots Hacked . | . . . Non-combat . | . . . Combat . | . . . Robot Hacks Applied . | . . . Relay Couplers Released . | . . . Fabnet Peak Effective % . | . . . Robots Rewired . | . . . Allies Hacked . | . . . Hacks Repelled . | . . . Allies | -11 -10 -10 -------- Run | Yrd Mat Sub Total Allies . | . . . Largest Group . | . . . Highest-Rated Group . | . . . Highest-Rated Ally . | . . . Total Orders . | . . . Ally Attacks . | . . . Total Damage . | . . . Kills . | . . . Allies Corrupted . | . . . Allies Melted . | . . . Intel | -11 -10 -10 ------- Run | Yrd Mat Sub Active Infowar (turns) 408 | . . 408 Optics 408 | . . 408 Robot Analysis Total . | . . . Derelict Logs Recovered 1 | . . 1 Drone Launches . | . . . Drone Recoveries . | . . . Exploration | -11 -10 -10 ------------- Run | Yrd Mat Sub Turns Passed 1356 | 66 135 1155 Spaces Moved 949 | 42 99 808 Core 3 | 3 . . Treads . | . . . Legs 946 | 39 99 808 Wheels . | . . . Hover . | . . . Flight . | . . . Fastest Speed 50 | 50 120 120 Average Speed 120 | 133 120 120 Slowest Speed 190 | 190 120 120 Overloaded Moves . | . . . Propulsion Burnouts . | . . . Robots Hopped . | . . . Potential Cave-ins . | . . . Cave-ins Triggered . | . . . Exploration Rate (%) 21 | 3 29 33 Regions Visited 2 Branch Regions 1 Pre-discovered Areas . | . . . Known Exits Taken . | . . . Unknown Exits Taken 2 | 1 1 . Scrap Searched . | . . . Spaces Dug . | . . . Terrain Destroyed . | . . . Melee . | . . . Projectile . | . . . AOE . | . . . Terrain Rammed . | . . . Walls Destroyed . | . . . Machines Disabled . | . . . Actions | -11 -10 -10 --------- Run | Yrd Mat Sub Total 1086 | 49 113 924 Wait 69 | . 8 61 Move 947 | 41 98 808 Hop . | . . . Pick Up 13 | 2 6 5 Fast Attach 8 | 6 . 2 Attach 2 | . . 2 Detach . | . . . Swap 4 | . . 4 Drop 7 | . . 7 Fire 36 | . 1 35 Melee . | . . . Ram . | . . . Kick . | . . . Crush . | . . . Escape Stasis . | . . . Rewire . | . . . Trap . | . . . Miscellaneous . | . . . Route ------- -11/Scrapyard -10/Materials (discovered 3 exits: [*Mat] / [*Min] / [*Sub]) -10/Subcaves (discovered 2 exits: [*Rec] / [*Scr]) History --------- Turn | Location | Event 23 | -11/Scrapyard | Discovered new exit (range 16) 67 | -11/Scrapyard | Entered Materials 68 | -10/Materials | Met a group of wandering Federalists 94 | -10/Materials | Discovered new exit (range 11) 115 | -10/Materials | Discovered new exit (range 16) 190 | -10/Materials | Discovered new exit (range 8) 202 | -10/Materials | Entered Subcaves 202 | -10/Subcaves | Accompanied by 1 ally 203 | -10/Subcaves | Continued accompanying wandering Federalists (3) 309 | -10/Subcaves | Build established: Mutant 408 | -10/Subcaves | A swath of the cavern ceiling suddenly collapsed 428 | -10/Subcaves | Wandering Federalist uncovered a shortcut to Scraptown 486 | -10/Subcaves | Ambushed by Subdwellers from Twisted Machinery 666 | -10/Subcaves | Core integrity fell below 50% 870 | -10/Subcaves | Learned Materials garrison access intel 1279 | -10/Subcaves | Discovered new exit (range 10) 1335 | -10/Subcaves | Core integrity fell below 20% 1357 | -10/Subcaves | Destroyed by IE-JJS(R) with Subdweller Machine Gun Last Messages --------------- 01228_ S-10 Pest destroyed. 01232_ Flight Unit fries itself beyond repair. 01240_ S-10 Pest springs to life. 01242_ Flight Unit fries itself beyond repair. 01242_ S-10 Pest suffers critical hit (Destroy). 01242_ Destroyed Lgt. Assault Rifle. 01245_ Lgt. Assault Rifle fries itself beyond repair. 01249_ Machine disabled. 01254_ S-10 Pest destroyed. 01262_ Lgt. Assault Rifle fries itself beyond repair. 01267_ Flight Unit fries itself beyond repair. 01274_ Lgt. Ion Engine fries itself beyond repair. 01276_ Autobeam Turret destroyed. 01279_ Acquired 10 matter. 01279_ EXIT=FOUND 01280_ Autobeam Turret suffers critical hit (Burn). 01280_ Autobeam Turret destroyed. 01284_ Acquired 16 matter. 01288_ Acquired 2 matter. 01339_ Aluminum Leg destroyed. Map ----- +----------------------------------------------------+ | ?????????????????????????????????????????????????? | | ?????????????????????????????????????????????????? | | ?????????????????????????????????????????????????? | | ?????????????????????????????????????????????????? | | #????????????????????????????????????????????????? | | #????????????????????????????????????????????????? | | #????????????????????????????????????????????????? | | ?????????????????????????????????????????????????? | | ?????????????????????????????????????????????????? | | ?????????????????????????????????????????????????? | | ???????????????????????????????????????? #???????? | | ???????????????????????????????????????? ??????? | | ????????????????????????????????????????"""#?????? | | ##??????????????????????????????????????" "##????? | | ##??????????????????????????????????????"" #????? | | #?????????????????????????????????????? #????? | | #?????????????????????????????????????? ###??? | | ####???????????????????###????????????? ### | | ##?????????????????## #?????????????# | | ##???????????????## ##????####????# "" | | ##?????????###?## ###### ###### """" | | #### #?###??#### ### ## """""" # | | ???# ## #?## ## # R " """" # | | ???# ### R ## """" | | ??## ## "### ##""" ? | | ### ## @ #######"#?## ##?## ? | | ## #### # #?????###??####????? | | ##### ######## ####????????########?? | | ##??# #???#" "#????##### ## #?? | | ##???# #???# s#??### #?? | | ##??## #???# % %#??# ####?? | | ## #### #???#" % #??# ##???? | | ## ## ####???#" " "#### #???? | | # #### ##?????#"""" """"# ##???? | | ##?## ###???#####<###### ##????? | | ##??# #???????###????# ####?????? | | #???#### ######??????????### #????????? | | # #?????## ### #####????????# #????????? | | # ##?????# ## ##???????# ##????????? | | ## ##????#### ##????### #?????????? | | # #??###""" "## ###### ####??????? | | ## #### " """ ## ##?????? | | # ##!&& ## ##????? | | &% [%[ "### #????? | | = " " "" "" "#?### #????? | | ## ####"""##" # "#?### ## #????? | | #### ##??# ####### ### ######### #???? | | ???## ##???####?????## #???????## #??? | | ????###??????????????## #????????## #?? | | ??????????????????????## #?????????# #?? | +----------------------------------------------------+ Best States ------------- Heat Dissipation 25 Energy Generation 10 Energy Capacity 250 Matter Stores 300 Matter Capacity 300 Sight Range 21 Terrain Scan Density 10 Evasion (%) 55 Item Schematics ----------------- None Robot Schematics ------------------ None Fabricated ------------ Nothing Repaired ---------- Nothing Studied --------- None Alien Tech Used ----------------- None Achievements -------------- None Challenges ------------ None Game ------ Seed TripodRapidThermoblaster Manual? 0 Play Time 00:08:30 Cumulative 238.1 hours Start 2025.11.09 @ 15:38:46 End 2025.11.09 @ 16:04:56 Sessions 1 Manual Loads 0 Difficulty Rogue Special Mode None Game No. 242 Rogue 238 Adventurer 3 Explorer 1 Win Type - Total 1 Types 1/0/0/0/0/0/0/0/0/0 Lore% 74 Gallery% 74 Achievement% 57 Wizard Run 0 Options --------- Layout 0 ASCII 0 Keyboard 0 Movement Mouse Keybinds 0 Fullscreen 2 Font 18/SmallcapsGlow Map View 76x50 Zoom Use 0% Tactical HUD 1 Map Filters NONE Filters NONE Steam 1 RUN: b2de8708-c824-4362-b299-19a44b74ae1b